[Event "Titled Tuesday Blitz May 30 Early 2023"]
[White "Baghdasaryan, Vahe"]
[Black "Mazurkiewicz, Michal"]
[WhiteFideId "13303139"]
[BlackFideId "1124943"]
[WhiteElo "2216"]
[BlackElo "2054"]
[Result "0-1"]
[Round "10"]
[TimeControl "180+2"]
[Date "2023.05.30"]
[WhiteClock "0:00:00"]
[BlackClock "0:00:22"]

1. d4 {[%clk 0:03:00]}  Nf6 {[%clk 0:02:59]} 2. Nf3 {[%clk 0:02:58]}  g6 {[%clk 0:02:59]} 3. g3 {[%clk 0:02:56]}  Bg7 {[%clk 0:03:00]} 4. Bg2 {[%clk 0:02:56]}  O-O {[%clk 0:03:01]} 5. O-O {[%clk 0:02:56]}  d6 {[%clk 0:03:01]} 6. c4 {[%clk 0:02:55]}  c5 {[%clk 0:03:02]} 7. dxc5 {[%clk 0:02:53]}  dxc5 {[%clk 0:03:02]} 8. Nc3 {[%clk 0:02:53]}  Nc6 {[%clk 0:03:01]} 9. Be3 {[%clk 0:02:54]}  Qa5 {[%clk 0:03:01]} 10. Qa4 {[%clk 0:02:39]}  Qxa4 {[%clk 0:02:51]} 11. Nxa4 {[%clk 0:02:40]}  b6 {[%clk 0:02:51]} 12. Nc3 {[%clk 0:02:22]}  Ba6 {[%clk 0:02:23]} 13. Nb5 {[%clk 0:02:06]}  Bxb5 {[%clk 0:02:18]} 14. cxb5 {[%clk 0:02:06]}  Nb4 {[%clk 0:02:18]} 15. Ne5 {[%clk 0:01:50]}  Rac8 {[%clk 0:02:12]} 16. Nc6 {[%clk 0:01:45]}  Nfd5 {[%clk 0:01:43]} 17. Bd2 {[%clk 0:01:03]}  Nxc6 {[%clk 0:01:21]} 18. bxc6 {[%clk 0:01:01]}  e6 {[%clk 0:01:19]} 19. e4 {[%clk 0:00:24]}  Ne7 {[%clk 0:01:17]} 20. Rad1 {[%clk 0:00:19]}  Nxc6 {[%clk 0:01:17]} 21. b3 {[%clk 0:00:17]}  Nd4 {[%clk 0:01:17]} 22. Be3 {[%clk 0:00:17]}  Rfd8 {[%clk 0:01:16]} 23. f4 {[%clk 0:00:17]}  Nc2 {[%clk 0:01:15]} 24. Kf2 {[%clk 0:00:14]}  Bd4 {[%clk 0:00:56]} 25. Bxd4 {[%clk 0:00:12]}  Rxd4 {[%clk 0:00:53]} 26. e5 {[%clk 0:00:09]}  Rcd8 {[%clk 0:00:52]} 27. Bf3 {[%clk 0:00:08]}  Rd2+ {[%clk 0:00:43]} 28. Kg1 {[%clk 0:00:05]}  Nd4 {[%clk 0:00:24]} 29. Rxd2 {[%clk 0:00:05]}  Nxf3+ {[%clk 0:00:24]} 30. Rxf3 {[%clk 0:00:06]}  Rxd2 {[%clk 0:00:24]} 31. a4 {[%clk 0:00:04]}  h5 {[%clk 0:00:24]} 32. Rc3 {[%clk 0:00:03]}  Kg7 {[%clk 0:00:24]} 33. h3 {[%clk 0:00:01]}  a5 {[%clk 0:00:23]} 34. g4 {[%clk 0:00:02]}  hxg4 {[%clk 0:00:23]} 35. hxg4 {[%clk 0:00:02]}  g5 {[%clk 0:00:23]} 36. f5 {[%clk 0:00:02]}  exf5 {[%clk 0:00:22]} 37. gxf5 {[%clk 0:00:03]}  Re2 {[%clk 0:00:22]} 38. Rg3 {[%clk 0:00:01]}  Rxe5 {[%clk 0:00:21]} 39. Rxg5+ {[%clk 0:00:02]}  Kf6 {[%clk 0:00:22]} 40. Rg8 {[%clk 0:00:03]}  Kxf5 {[%clk 0:00:21]} 41. Rb8 {[%clk 0:00:02]}  Re6 {[%clk 0:00:22]} 42. Rb7 {[%clk 0:00:03]}  f6 {[%clk 0:00:21]} 43. Kf2 {[%clk 0:00:04]}  Ke4 {[%clk 0:00:21]} 44. Rd7 {[%clk 0:00:04]}  f5 {[%clk 0:00:21]} 45. Ke2 {[%clk 0:00:04]}  f4 {[%clk 0:00:22]} 46. Rd8 {[%clk 0:00:03]}  Rh6 {[%clk 0:00:21]} 47. Re8+ {[%clk 0:00:01]}  Kd4 {[%clk 0:00:21]} 48. Kf3 {[%clk 0:00:01]}  Rh3+ {[%clk 0:00:20]} 49. Kxf4 {[%clk 0:00:02]}  Rxb3 {[%clk 0:00:21]} 50. Re4+ {[%clk 0:00:02]}  Kc3 {[%clk 0:00:21]} 51. Ke5 {[%clk 0:00:02]}  Rb4 {[%clk 0:00:21]} 52. Re1 {[%clk 0:00:02]}  Rxa4 {[%clk 0:00:21]} 53. Kd5 {[%clk 0:00:03]}  Rb4 {[%clk 0:00:20]} 54. Kc6 {[%clk 0:00:03]}  a4 {[%clk 0:00:20]} 55. Rc1+ {[%clk 0:00:03]}  Kb2 {[%clk 0:00:20]} 56. Rh1 {[%clk 0:00:03]}  a3 {[%clk 0:00:21]} 57. Rh2+ {[%clk 0:00:04]}  Kb3 {[%clk 0:00:21]} 58. Rh3+ {[%clk 0:00:04]}  Ka4 {[%clk 0:00:21]} 59. Rh2 {[%clk 0:00:04]}  Rb2 {[%clk 0:00:22]} 60. Rh8 {[%clk 0:00:04]}  a2 {[%clk 0:00:22]} 61. Ra8+ {[%clk 0:00:04]}  Kb3 {[%clk 0:00:22]} 62. Kxb6 {[%clk 0:00:05]}  Kc2+ {[%clk 0:00:22]} 63. Kxc5 {[%clk 0:00:05]}  Kb1 {[%clk 0:00:23]} 64. Rh8 {[%clk 0:00:00]}  a1=Q {[%clk 0:00:22]} 0-1


[Site "https://www.chess.com"]

[Event "Titled Tuesday Blitz May 30 Early 2023"]
[White "Martin Alvarez, Inigo"]
[Black "Romkachess"]
[WhiteFideId "2259354"]
[WhiteElo "2395"]
[BlackElo "2552"]
[Result "1-0"]
[Round "10"]
[TimeControl "180+2"]
[Date "2023.05.30"]
[WhiteClock "0:00:12"]
[BlackClock "0:00:00"]

1. e4 {[%clk 0:03:00]}  c5 {[%clk 0:03:00]} 2. Nc3 {[%clk 0:03:00]}  d6 {[%clk 0:02:59]} 3. d3 {[%clk 0:03:00]}  Nc6 {[%clk 0:02:59]} 4. Be3 {[%clk 0:02:59]}  g6 {[%clk 0:02:59]} 5. d4 {[%clk 0:03:00]}  cxd4 {[%clk 0:02:58]} 6. Bxd4 {[%clk 0:03:00]}  Nxd4 {[%clk 0:02:59]} 7. Qxd4 {[%clk 0:03:00]}  Nf6 {[%clk 0:03:00]} 8. e5 {[%clk 0:03:00]}  dxe5 {[%clk 0:02:59]} 9. Bb5+ {[%clk 0:03:01]}  Bd7 {[%clk 0:02:57]} 10. Qxe5 {[%clk 0:03:01]}  a6 {[%clk 0:02:45]} 11. Bxd7+ {[%clk 0:03:00]}  Qxd7 {[%clk 0:02:46]} 12. Nf3 {[%clk 0:02:59]}  Bg7 {[%clk 0:02:44]} 13. O-O {[%clk 0:02:59]}  O-O {[%clk 0:02:44]} 14. Rfe1 {[%clk 0:02:58]}  e6 {[%clk 0:02:42]} 15. Rad1 {[%clk 0:02:57]}  Qc8 {[%clk 0:02:20]} 16. Qa5 {[%clk 0:02:47]}  Rd8 {[%clk 0:02:17]} 17. h3 {[%clk 0:02:39]}  Rd7 {[%clk 0:01:30]} 18. Rxd7 {[%clk 0:02:29]}  Nxd7 {[%clk 0:01:18]} 19. Re3 {[%clk 0:02:29]}  Qc5 {[%clk 0:01:14]} 20. Qxc5 {[%clk 0:02:09]}  Nxc5 {[%clk 0:01:14]} 21. Kf1 {[%clk 0:02:04]}  Rd8 {[%clk 0:01:09]} 22. Ke2 {[%clk 0:02:03]}  b5 {[%clk 0:01:09]} 23. b4 {[%clk 0:01:46]}  Nb7 {[%clk 0:00:31]} 24. Ne4 {[%clk 0:01:44]}  Bf8 {[%clk 0:00:23]} 25. a3 {[%clk 0:01:38]}  a5 {[%clk 0:00:22]} 26. c3 {[%clk 0:01:33]}  Rc8 {[%clk 0:00:17]} 27. Ne5 {[%clk 0:01:21]}  h6 {[%clk 0:00:14]} 28. Nd7 {[%clk 0:01:16]}  Bg7 {[%clk 0:00:11]} 29. Nec5 {[%clk 0:00:52]}  Nd6 {[%clk 0:00:09]} 30. bxa5 {[%clk 0:00:42]}  Nc4 {[%clk 0:00:10]} 31. Re4 {[%clk 0:00:32]}  Nxa5 {[%clk 0:00:08]} 32. Rb4 {[%clk 0:00:29]}  Bxc3 {[%clk 0:00:07]} 33. Rxb5 {[%clk 0:00:29]}  Nc4 {[%clk 0:00:04]} 34. Kd3 {[%clk 0:00:26]}  Nxa3 {[%clk 0:00:04]} 35. Rb3 {[%clk 0:00:23]}  Be1 {[%clk 0:00:02]} 36. Rxa3 {[%clk 0:00:22]}  Bxf2 {[%clk 0:00:03]} 37. Rc3 {[%clk 0:00:20]}  Rd8 {[%clk 0:00:03]} 38. Ke4 {[%clk 0:00:18]}  Kg7 {[%clk 0:00:03]} 39. Rf3 {[%clk 0:00:15]}  Be1 {[%clk 0:00:01]} 40. Ne5 {[%clk 0:00:13]}  f5+ {[%clk 0:00:01]} 41. Ke3 {[%clk 0:00:12]}  Bd2+ {[%clk 0:00:00]} 42. Ke2 {[%clk 0:00:12]} 1-0


[Site "https://www.chess.com"]

[Event "Titled Tuesday Blitz May 30 Early 2023"]
[White "Shvedova, Alexandra"]
[Black "Goswami, Vedant"]
[WhiteFideId "54154782"]
[BlackFideId "5003725"]
[WhiteElo "1973"]
[BlackElo "2011"]
[Result "1-0"]
[Round "10"]
[TimeControl "180+2"]
[Date "2023.05.30"]
[WhiteClock "0:00:43"]
[BlackClock "0:00:03"]

1. Nf3 {[%clk 0:03:00]}  d6 {[%clk 0:02:58]} 2. c4 {[%clk 0:03:00]}  e5 {[%clk 0:02:56]} 3. Nc3 {[%clk 0:03:00]}  Nc6 {[%clk 0:02:56]} 4. d3 {[%clk 0:02:58]}  g6 {[%clk 0:02:55]} 5. g3 {[%clk 0:02:57]}  Bg7 {[%clk 0:02:55]} 6. Bg2 {[%clk 0:02:58]}  Be6 {[%clk 0:02:54]} 7. Rb1 {[%clk 0:02:57]}  h6 {[%clk 0:02:54]} 8. b4 {[%clk 0:02:56]}  Qd7 {[%clk 0:02:52]} 9. Qc2 {[%clk 0:02:48]}  Nge7 {[%clk 0:02:50]} 10. h4 {[%clk 0:02:45]}  Rb8 {[%clk 0:02:36]} 11. Bd2 {[%clk 0:02:35]}  d5 {[%clk 0:02:25]} 12. cxd5 {[%clk 0:02:31]}  Nxd5 {[%clk 0:02:23]} 13. Ne4 {[%clk 0:02:29]}  b6 {[%clk 0:02:15]} 14. b5 {[%clk 0:02:24]}  Nd4 {[%clk 0:02:11]} 15. Nxd4 {[%clk 0:02:23]}  exd4 {[%clk 0:02:12]} 16. Bc1 {[%clk 0:02:09]}  O-O {[%clk 0:02:06]} 17. O-O {[%clk 0:02:05]}  Rfc8 {[%clk 0:01:59]} 18. Ba3 {[%clk 0:01:53]}  f5 {[%clk 0:01:55]} 19. Nd2 {[%clk 0:01:51]}  Nc3 {[%clk 0:01:55]} 20. Rbe1 {[%clk 0:01:47]}  Bd5 {[%clk 0:01:53]} 21. e4 {[%clk 0:01:39]}  dxe3 {[%clk 0:01:50]} 22. fxe3 {[%clk 0:01:38]}  Bxg2 {[%clk 0:01:49]} 23. Kxg2 {[%clk 0:01:38]}  Qxb5 {[%clk 0:01:36]} 24. Nf3 {[%clk 0:01:36]}  c5 {[%clk 0:01:26]} 25. Bb2 {[%clk 0:01:33]}  Nd5 {[%clk 0:01:07]} 26. Bxg7 {[%clk 0:01:34]}  Kxg7 {[%clk 0:01:06]} 27. h5 {[%clk 0:01:28]}  Re8 {[%clk 0:00:50]} 28. e4 {[%clk 0:01:25]}  Nf6 {[%clk 0:00:40]} 29. hxg6 {[%clk 0:01:23]}  fxe4 {[%clk 0:00:25]} 30. dxe4 {[%clk 0:01:22]}  Qc6 {[%clk 0:00:23]} 31. e5 {[%clk 0:01:20]}  Nd5 {[%clk 0:00:20]} 32. Qe4 {[%clk 0:01:17]}  Rbc8 {[%clk 0:00:19]} 33. Nh4 {[%clk 0:01:14]}  Ne7 {[%clk 0:00:19]} 34. Rf7+ {[%clk 0:01:12]}  Kg8 {[%clk 0:00:18]} 35. Qxc6 {[%clk 0:01:09]}  Rxc6 {[%clk 0:00:17]} 36. e6 {[%clk 0:01:10]}  Nd5 {[%clk 0:00:14]} 37. e7 {[%clk 0:01:02]}  Nf6 {[%clk 0:00:11]} 38. Nf5 {[%clk 0:01:00]}  Ng4 {[%clk 0:00:10]} 39. Nh4 {[%clk 0:00:42]}  Rxg6 {[%clk 0:00:10]} 40. Rf8+ {[%clk 0:00:41]}  Rxf8 {[%clk 0:00:07]} 41. exf8=Q+ {[%clk 0:00:42]}  Kxf8 {[%clk 0:00:03]} 42. Nxg6+ {[%clk 0:00:43]} 1-0


[Site "https://www.chess.com"]

[Event "Titled Tuesday Blitz May 30 Early 2023"]
[White "Nugumanov, Bakhtiyar"]
[Black "robertoalejandro10"]
[WhiteFideId "13701797"]
[WhiteElo "2209"]
[BlackElo "2522"]
[Result "1-0"]
[Round "10"]
[TimeControl "180+2"]
[Date "2023.05.30"]
[WhiteClock "0:00:21"]
[BlackClock "0:00:03"]

1. Nf3 {[%clk 0:03:00]}  Nf6 {[%clk 0:02:59]} 2. c4 {[%clk 0:03:00]}  c5 {[%clk 0:02:59]} 3. g3 {[%clk 0:03:01]}  g6 {[%clk 0:03:00]} 4. Nc3 {[%clk 0:03:00]}  Bg7 {[%clk 0:03:00]} 5. Bg2 {[%clk 0:02:59]}  O-O {[%clk 0:03:01]} 6. O-O {[%clk 0:02:53]}  d6 {[%clk 0:03:01]} 7. d4 {[%clk 0:02:53]}  cxd4 {[%clk 0:03:02]} 8. Nxd4 {[%clk 0:02:54]}  Nc6 {[%clk 0:03:03]} 9. Nc2 {[%clk 0:02:53]}  Be6 {[%clk 0:03:02]} 10. b3 {[%clk 0:02:52]}  Qd7 {[%clk 0:03:02]} 11. Re1 {[%clk 0:02:48]}  Bh3 {[%clk 0:03:02]} 12. Bh1 {[%clk 0:02:48]}  Ng4 {[%clk 0:03:02]} 13. Bb2 {[%clk 0:02:38]}  Qf5 {[%clk 0:03:02]} 14. f3 {[%clk 0:01:31]}  Qc5+ {[%clk 0:03:02]} 15. e3 {[%clk 0:01:20]}  Nf6 {[%clk 0:03:02]} 16. Qd2 {[%clk 0:01:14]}  Rad8 {[%clk 0:02:56]} 17. Rad1 {[%clk 0:01:14]}  h5 {[%clk 0:02:52]} 18. a3 {[%clk 0:01:14]}  Qa5 {[%clk 0:02:41]} 19. b4 {[%clk 0:01:13]}  Qc7 {[%clk 0:02:40]} 20. Nb5 {[%clk 0:01:13]}  Qb8 {[%clk 0:02:40]} 21. e4 {[%clk 0:01:09]}  a6 {[%clk 0:02:39]} 22. Nbd4 {[%clk 0:01:08]}  e5 {[%clk 0:02:36]} 23. Ne2 {[%clk 0:01:07]}  Qa7+ {[%clk 0:02:32]} 24. Qe3 {[%clk 0:01:04]}  Qb8 {[%clk 0:02:32]} 25. Qf2 {[%clk 0:00:57]}  b5 {[%clk 0:02:29]} 26. Ne3 {[%clk 0:00:55]}  Be6 {[%clk 0:02:25]} 27. Rc1 {[%clk 0:00:45]}  Bh6 {[%clk 0:02:18]} 28. cxb5 {[%clk 0:00:42]}  Qxb5 {[%clk 0:01:53]} 29. f4 {[%clk 0:00:35]}  Ng4 {[%clk 0:01:46]} 30. Nxg4 {[%clk 0:00:35]}  Bxg4 {[%clk 0:01:46]} 31. Nc3 {[%clk 0:00:35]}  Qb7 {[%clk 0:01:39]} 32. Nd5 {[%clk 0:00:36]}  Bg7 {[%clk 0:01:24]} 33. Rxc6 {[%clk 0:00:36]}  exf4 {[%clk 0:01:09]} 34. Bxg7 {[%clk 0:00:34]}  fxg3 {[%clk 0:01:10]} 35. Qf6 {[%clk 0:00:24]}  gxh2+ {[%clk 0:01:11]} 36. Kxh2 {[%clk 0:00:23]}  Rfe8 {[%clk 0:01:11]} 37. Rc7 {[%clk 0:00:21]}  Qxc7 {[%clk 0:00:03]} 38. Nxc7 {[%clk 0:00:21]} 1-0


[Site "https://www.chess.com"]

[Event "Titled Tuesday Blitz May 30 Early 2023"]
[White "Sadovsky, Artem"]
[Black "Szyszylo, Rafal"]
[WhiteFideId "4155840"]
[BlackFideId "1109626"]
[WhiteElo "2314"]
[BlackElo "1951"]
[Result "1-0"]
[Round "10"]
[TimeControl "180+2"]
[Date "2023.05.30"]
[WhiteClock "0:01:11"]
[BlackClock "0:00:00"]

1. Nf3 {[%clk 0:02:54]}  d6 {[%clk 0:03:00]} 2. e3 {[%clk 0:02:54]}  g6 {[%clk 0:02:56]} 3. c4 {[%clk 0:02:54]}  Nf6 {[%clk 0:02:57]} 4. Nc3 {[%clk 0:02:54]}  Bg7 {[%clk 0:02:58]} 5. d4 {[%clk 0:02:54]}  O-O {[%clk 0:02:58]} 6. h3 {[%clk 0:02:54]}  Nbd7 {[%clk 0:02:59]} 7. Be2 {[%clk 0:02:54]}  e5 {[%clk 0:02:59]} 8. O-O {[%clk 0:02:54]}  Re8 {[%clk 0:02:59]} 9. b3 {[%clk 0:02:53]}  c6 {[%clk 0:02:58]} 10. Bb2 {[%clk 0:02:53]}  e4 {[%clk 0:02:58]} 11. Nd2 {[%clk 0:02:53]}  d5 {[%clk 0:02:58]} 12. Rc1 {[%clk 0:02:53]}  Nf8 {[%clk 0:02:55]} 13. Ba3 {[%clk 0:02:49]}  Ne6 {[%clk 0:02:54]} 14. cxd5 {[%clk 0:02:46]}  cxd5 {[%clk 0:02:54]} 15. Nb5 {[%clk 0:02:46]}  Bf8 {[%clk 0:02:48]} 16. Bxf8 {[%clk 0:02:46]}  Rxf8 {[%clk 0:02:45]} 17. Qc2 {[%clk 0:02:47]}  Bd7 {[%clk 0:02:43]} 18. Qb2 {[%clk 0:02:33]}  Bxb5 {[%clk 0:02:41]} 19. Bxb5 {[%clk 0:02:32]}  a6 {[%clk 0:02:41]} 20. Be2 {[%clk 0:02:33]}  b5 {[%clk 0:02:27]} 21. b4 {[%clk 0:02:31]}  Nd7 {[%clk 0:02:20]} 22. Nb3 {[%clk 0:02:31]}  Nb6 {[%clk 0:02:20]} 23. Nc5 {[%clk 0:02:30]}  Nc4 {[%clk 0:02:20]} 24. Bxc4 {[%clk 0:02:30]}  bxc4 {[%clk 0:02:17]} 25. a4 {[%clk 0:02:24]}  Nc7 {[%clk 0:02:00]} 26. b5 {[%clk 0:02:19]}  Rb8 {[%clk 0:01:44]} 27. b6 {[%clk 0:02:18]}  Ne6 {[%clk 0:01:40]} 28. a5 {[%clk 0:02:10]}  Qd6 {[%clk 0:00:58]} 29. Nxa6 {[%clk 0:01:58]}  Ra8 {[%clk 0:00:57]} 30. Qb5 {[%clk 0:01:59]}  f5 {[%clk 0:00:39]} 31. Nc5 {[%clk 0:01:56]}  f4 {[%clk 0:00:34]} 32. Nb7 {[%clk 0:01:46]}  Qe7 {[%clk 0:00:31]} 33. Qxd5 {[%clk 0:01:46]}  f3 {[%clk 0:00:26]} 34. Nc5 {[%clk 0:01:42]}  fxg2 {[%clk 0:00:24]} 35. Qxe6+ {[%clk 0:01:39]}  Qxe6 {[%clk 0:00:24]} 36. Nxe6 {[%clk 0:01:40]}  gxf1=Q+ {[%clk 0:00:24]} 37. Kxf1 {[%clk 0:01:41]}  Rxa5 {[%clk 0:00:18]} 38. Nxf8 {[%clk 0:01:40]}  Kxf8 {[%clk 0:00:19]} 39. Rxc4 {[%clk 0:01:30]}  Rb5 {[%clk 0:00:20]} 40. Rc8+ {[%clk 0:01:15]}  Ke7 {[%clk 0:00:19]} 41. Rc7+ {[%clk 0:01:16]}  Ke6 {[%clk 0:00:19]} 42. b7 {[%clk 0:01:11]}  h5 {[%clk 0:00:18]} 43. h4 {[%clk 0:01:11]}  Kf5 {[%clk 0:00:17]} 44. Rc5+ {[%clk 0:01:10]}  Rxc5 {[%clk 0:00:00]} 45. dxc5 {[%clk 0:01:11]} 1-0


[Site "https://www.chess.com"]

[Event "Titled Tuesday Blitz May 30 Early 2023"]
[White "LangesNasenhaar"]
[Black "Korpics, Zsolt"]
[BlackFideId "705241"]
[WhiteElo "2485"]
[BlackElo "2365"]
[Result "1-0"]
[Round "10"]
[TimeControl "180+2"]
[Date "2023.05.30"]
[WhiteClock "0:01:06"]
[BlackClock "0:00:01"]

1. d4 {[%clk 0:03:00]}  Nf6 {[%clk 0:02:59]} 2. Nc3 {[%clk 0:03:01]}  d5 {[%clk 0:02:59]} 3. Bf4 {[%clk 0:03:01]}  c5 {[%clk 0:02:59]} 4. e4 {[%clk 0:03:01]}  Nxe4 {[%clk 0:02:55]} 5. Nxe4 {[%clk 0:03:00]}  dxe4 {[%clk 0:02:55]} 6. dxc5 {[%clk 0:03:01]}  Qa5+ {[%clk 0:02:54]} 7. c3 {[%clk 0:03:01]}  Qxc5 {[%clk 0:02:54]} 8. Qa4+ {[%clk 0:03:02]}  Nc6 {[%clk 0:02:54]} 9. Qxe4 {[%clk 0:03:03]}  g6 {[%clk 0:02:52]} 10. Nf3 {[%clk 0:03:03]}  Bg7 {[%clk 0:02:52]} 11. Rd1 {[%clk 0:02:57]}  O-O {[%clk 0:02:42]} 12. Be3 {[%clk 0:02:57]}  Qa5 {[%clk 0:02:37]} 13. Bc4 {[%clk 0:02:56]}  Bf5 {[%clk 0:01:59]} 14. Qh4 {[%clk 0:02:56]}  Rad8 {[%clk 0:01:12]} 15. O-O {[%clk 0:02:55]}  Ne5 {[%clk 0:00:54]} 16. Nxe5 {[%clk 0:02:46]}  Qxe5 {[%clk 0:00:51]} 17. Bd4 {[%clk 0:02:40]}  Qc7 {[%clk 0:00:51]} 18. Bxg7 {[%clk 0:02:35]}  Kxg7 {[%clk 0:00:50]} 19. Bb3 {[%clk 0:02:29]}  Rxd1 {[%clk 0:00:49]} 20. Rxd1 {[%clk 0:02:30]}  Rd8 {[%clk 0:00:48]} 21. Re1 {[%clk 0:02:30]}  e5 {[%clk 0:00:41]} 22. Qg3 {[%clk 0:02:19]}  f6 {[%clk 0:00:39]} 23. Qe3 {[%clk 0:02:15]}  b6 {[%clk 0:00:36]} 24. h3 {[%clk 0:02:13]}  Qc5 {[%clk 0:00:27]} 25. Qe2 {[%clk 0:02:04]}  b5 {[%clk 0:00:18]} 26. Rd1 {[%clk 0:02:00]}  Rd6 {[%clk 0:00:16]} 27. Rxd6 {[%clk 0:01:58]}  Qxd6 {[%clk 0:00:16]} 28. Qxb5 {[%clk 0:01:57]}  Qd2 {[%clk 0:00:15]} 29. Bc4 {[%clk 0:01:42]}  e4 {[%clk 0:00:13]} 30. Bf1 {[%clk 0:01:37]}  e3 {[%clk 0:00:12]} 31. Qe2 {[%clk 0:01:37]}  exf2+ {[%clk 0:00:08]} 32. Qxf2 {[%clk 0:01:36]}  Qd7 {[%clk 0:00:09]} 33. Qd4 {[%clk 0:01:33]}  Qb7 {[%clk 0:00:08]} 34. b4 {[%clk 0:01:31]}  Be6 {[%clk 0:00:05]} 35. a4 {[%clk 0:01:29]}  Bd7 {[%clk 0:00:02]} 36. b5 {[%clk 0:01:30]}  Be6 {[%clk 0:00:02]} 37. a5 {[%clk 0:01:28]}  Kf7 {[%clk 0:00:02]} 38. b6 {[%clk 0:01:27]}  a6 {[%clk 0:00:02]} 39. c4 {[%clk 0:01:24]}  Bc8 {[%clk 0:00:02]} 40. c5 {[%clk 0:01:17]}  Be6 {[%clk 0:00:03]} 41. Bc4 {[%clk 0:01:14]}  Qc6 {[%clk 0:00:02]} 42. Qd6 {[%clk 0:01:07]}  Qe4 {[%clk 0:00:01]} 43. Qxe6+ {[%clk 0:01:05]}  Qxe6 {[%clk 0:00:01]} 44. Bxe6+ {[%clk 0:01:06]}  Kxe6 {[%clk 0:00:01]} 45. b7 {[%clk 0:01:06]} 1-0


[Site "https://www.chess.com"]

[Event "Titled Tuesday Blitz May 30 Early 2023"]
[White "Rosenberg, Evan S"]
[Black "Zheenbekov, Nurgazy"]
[WhiteFideId "2019299"]
[BlackFideId "13800485"]
[WhiteElo "2321"]
[BlackElo "1975"]
[Result "1-0"]
[Round "10"]
[TimeControl "180+2"]
[Date "2023.05.30"]
[WhiteClock "0:00:33"]
[BlackClock "0:00:00"]

1. d4 {[%clk 0:03:00]}  Nf6 {[%clk 0:02:45]} 2. Bg5 {[%clk 0:02:59]}  e6 {[%clk 0:02:40]} 3. e4 {[%clk 0:02:58]}  h6 {[%clk 0:02:40]} 4. Bxf6 {[%clk 0:02:58]}  Qxf6 {[%clk 0:02:40]} 5. Nc3 {[%clk 0:02:59]}  b6 {[%clk 0:02:39]} 6. Qd2 {[%clk 0:02:54]}  Bb7 {[%clk 0:02:38]} 7. O-O-O {[%clk 0:02:53]}  g5 {[%clk 0:02:35]} 8. g3 {[%clk 0:02:47]}  Bg7 {[%clk 0:02:33]} 9. Bg2 {[%clk 0:02:46]}  Qe7 {[%clk 0:02:33]} 10. f4 {[%clk 0:02:45]}  d6 {[%clk 0:02:31]} 11. Nf3 {[%clk 0:02:43]}  g4 {[%clk 0:02:27]} 12. Ne1 {[%clk 0:02:30]}  Nd7 {[%clk 0:02:20]} 13. Kb1 {[%clk 0:02:30]}  O-O-O {[%clk 0:02:20]} 14. a4 {[%clk 0:02:29]}  Kb8 {[%clk 0:02:15]} 15. a5 {[%clk 0:02:29]}  c5 {[%clk 0:02:12]} 16. e5 {[%clk 0:02:24]}  d5 {[%clk 0:02:10]} 17. Nb5 {[%clk 0:02:22]}  c4 {[%clk 0:01:55]} 18. Nd6 {[%clk 0:02:22]}  Bc6 {[%clk 0:01:48]} 19. Qb4 {[%clk 0:02:19]}  Kc7 {[%clk 0:01:48]} 20. c3 {[%clk 0:02:17]}  Bf8 {[%clk 0:01:45]} 21. Nc2 {[%clk 0:02:10]}  f5 {[%clk 0:01:35]} 22. Na3 {[%clk 0:02:07]}  Rb8 {[%clk 0:01:33]} 23. a6 {[%clk 0:02:04]}  Rd8 {[%clk 0:01:22]} 24. Rc1 {[%clk 0:02:00]}  Kb8 {[%clk 0:01:21]} 25. Naxc4 {[%clk 0:01:56]}  Ka8 {[%clk 0:01:00]} 26. Rc2 {[%clk 0:01:42]}  Nb8 {[%clk 0:00:59]} 27. Nxb6+ {[%clk 0:01:07]}  axb6 {[%clk 0:00:59]} 28. Qxb6 {[%clk 0:01:08]}  Rxd6 {[%clk 0:00:45]} 29. exd6 {[%clk 0:01:08]}  Qxd6 {[%clk 0:00:45]} 30. b4 {[%clk 0:01:08]}  Qd7 {[%clk 0:00:39]} 31. a7 {[%clk 0:00:49]}  Na6 {[%clk 0:00:38]} 32. Qxa6 {[%clk 0:00:47]}  Bb5 {[%clk 0:00:38]} 33. Qb6 {[%clk 0:00:45]}  Bd6 {[%clk 0:00:37]} 34. Bf1 {[%clk 0:00:41]}  Bxf1 {[%clk 0:00:30]} 35. Rxf1 {[%clk 0:00:40]}  h5 {[%clk 0:00:25]} 36. Ra2 {[%clk 0:00:36]}  h4 {[%clk 0:00:24]} 37. Ra6 {[%clk 0:00:36]}  hxg3 {[%clk 0:00:00]} 38. hxg3 {[%clk 0:00:33]} 1-0


[Site "https://www.chess.com"]

[Event "Titled Tuesday Blitz May 30 Early 2023"]
[White "Pg, Mohd Omar Ak Hira"]
[Black "Erzhanov, Arman"]
[WhiteFideId "10500103"]
[BlackFideId "4138821"]
[WhiteElo "2167"]
[BlackElo "2138"]
[Result "0-1"]
[Round "10"]
[TimeControl "180+2"]
[Date "2023.05.30"]
[WhiteClock "0:00:06"]
[BlackClock "0:00:16"]

1. e4 {[%clk 0:03:00]}  c5 {[%clk 0:02:59]} 2. Nf3 {[%clk 0:03:00]}  Nc6 {[%clk 0:02:58]} 3. d4 {[%clk 0:03:00]}  cxd4 {[%clk 0:02:59]} 4. Nxd4 {[%clk 0:03:01]}  Nf6 {[%clk 0:03:00]} 5. Nc3 {[%clk 0:03:00]}  e5 {[%clk 0:03:01]} 6. Nf3 {[%clk 0:02:54]}  Bb4 {[%clk 0:03:00]} 7. Bd3 {[%clk 0:02:53]}  d5 {[%clk 0:03:00]} 8. exd5 {[%clk 0:02:30]}  Nxd5 {[%clk 0:03:01]} 9. Bd2 {[%clk 0:02:24]}  Bxc3 {[%clk 0:02:51]} 10. bxc3 {[%clk 0:02:24]}  O-O {[%clk 0:02:52]} 11. O-O {[%clk 0:02:22]}  f6 {[%clk 0:02:48]} 12. h3 {[%clk 0:01:54]}  Be6 {[%clk 0:02:46]} 13. Re1 {[%clk 0:01:43]}  Rc8 {[%clk 0:02:43]} 14. Qe2 {[%clk 0:01:37]}  Nde7 {[%clk 0:02:35]} 15. Be3 {[%clk 0:01:24]}  b6 {[%clk 0:02:33]} 16. c4 {[%clk 0:01:15]}  Na5 {[%clk 0:02:27]} 17. c5 {[%clk 0:01:14]}  bxc5 {[%clk 0:02:27]} 18. Bd2 {[%clk 0:01:09]}  Nac6 {[%clk 0:02:25]} 19. Qe4 {[%clk 0:01:00]}  g6 {[%clk 0:02:22]} 20. Nh4 {[%clk 0:00:57]}  Nf5 {[%clk 0:02:14]} 21. Nxf5 {[%clk 0:00:53]}  gxf5 {[%clk 0:02:12]} 22. Qh4 {[%clk 0:00:39]}  e4 {[%clk 0:02:10]} 23. Bh6 {[%clk 0:00:39]}  Rf7 {[%clk 0:02:01]} 24. Be2 {[%clk 0:00:36]}  Ne5 {[%clk 0:01:56]} 25. Bh5 {[%clk 0:00:36]}  Rfc7 {[%clk 0:01:47]} 26. Rad1 {[%clk 0:00:35]}  Qe7 {[%clk 0:01:46]} 27. Qg3+ {[%clk 0:00:32]}  Kh8 {[%clk 0:01:45]} 28. Bf4 {[%clk 0:00:32]}  Rg8 {[%clk 0:01:41]} 29. Qc3 {[%clk 0:00:32]}  Bxa2 {[%clk 0:01:31]} 30. Ra1 {[%clk 0:00:27]}  Bd5 {[%clk 0:01:22]} 31. Ra6 {[%clk 0:00:27]}  Rc6 {[%clk 0:01:10]} 32. Ra5 {[%clk 0:00:19]}  Ng6 {[%clk 0:01:04]} 33. Bg5 {[%clk 0:00:15]}  Qe5 {[%clk 0:00:37]} 34. Qxe5 {[%clk 0:00:13]}  Nxe5 {[%clk 0:00:38]} 35. Bf4 {[%clk 0:00:11]}  Rg7 {[%clk 0:00:31]} 36. Rd1 {[%clk 0:00:12]}  Bg8 {[%clk 0:00:28]} 37. Be3 {[%clk 0:00:12]}  Rgc7 {[%clk 0:00:20]} 38. Rd8 {[%clk 0:00:11]}  Rc8 {[%clk 0:00:20]} 39. Rd1 {[%clk 0:00:10]}  R6c7 {[%clk 0:00:19]} 40. Rd6 {[%clk 0:00:10]}  Nc4 {[%clk 0:00:19]} 41. Rda6 {[%clk 0:00:08]}  Nxa5 {[%clk 0:00:19]} 42. Rxa5 {[%clk 0:00:09]}  Kg7 {[%clk 0:00:18]} 43. c3 {[%clk 0:00:10]}  Be6 {[%clk 0:00:18]} 44. Ra6 {[%clk 0:00:09]}  Bf7 {[%clk 0:00:17]} 45. Rd6 {[%clk 0:00:06]}  Bxh5 {[%clk 0:00:16]} 0-1


[Site "https://www.chess.com"]